bitfinex/quotes_SOLUSD_20240811
["timestamp","ask_amount","ask_price","bid_price","bid_amount"]
[1723407913377,0.12549,145.31,145.24,16.1427]
[1723407913581,27.78,145.3,145.24,16.1427]
[1723407913757,5.56918,145.29,145.24,16.1427]
[1723407913953,0.75098,145.29,145.24,16.1427]
[1723407914352,4.8182,145.28,145.24,16.1427]
[1723407914557,5.3187,145.27,145.22,6.4165]
[1723407914769,0.5,145.26,145.22,6.4165]
[1723407914983,0.5,145.26,145.18,6.4165]
[1723407914984,27.78,145.26,145.18,6.4165]
[1723407915153,7.16207387,145.32,145.26,22.5592]
[1723407915362,4.8173,145.31,145.26,22.5592]
[1723407915561,4.8166,145.33,145.26,22.5592]
[1723407915858,12.0349,145.41,145.3,27.78]
[1723407916063,4.8153,145.37,145.3,27.78]
[1723407916374,27.78,145.4,145.3,27.78]
[1723407916785,4.8156,145.36,145.3,27.78]
[1723407917170,0.5,145.39,145.28,27.78]
[1723407917392,0.5,145.39,145.26,50.3392]
[1723407917393,28.28,145.38,145.26,50.3392]
[1723407917891,0.5,145.38,145.26,22.5592]
[1723407918062,4.8163,145.34,145.26,22.5592]
[1723407918258,45.62549,145.33,145.26,22.5592]
[1723407918487,0.5,145.32,145.26,22.5592]
[1723407918678,45.0,145.33,145.26,22.5592]
[1723407918857,49.94179,145.34,145.26,22.5592]
[1723407919058,49.94179,145.34,145.26,6.4165]
[1723407919059,0.12549,145.32,145.26,6.4165]
[1723407919287,0.25098,145.32,145.26,6.4165]
[1723407919591,0.25098,145.31,145.26,6.4165]
[1723407920282,0.12549,145.3,145.26,6.4165]
[1723407920485,45.12549,145.3,145.22,22.5592]
[1723407920691,0.87647,145.29,145.22,22.5592]
[1723407920896,0.12549,145.28,145.22,22.5592]
[1723407921388,0.12549,145.28,145.22,6.4165]
[1723407921593,0.12549,145.25,145.18,22.5592]
[1723407922000,0.12549,145.25,145.18,21.5592]
[1723407922497,4.94479,145.25,145.18,21.5592]
[1723407922668,45.12549,145.24,145.18,21.5592]
[1723407922888,45.0,145.29,145.18,55.0192]
[1723407923094,0.37647,145.28,145.18,55.0192]
[1723407923297,45.0,145.29,145.18,55.0192]
[1723407923502,4.817,145.32,145.21,33.46]
[1723407923807,4.8163,145.34,145.25,6.4165]
[1723407924117,0.5,145.33,145.18,48.6027]
[1723407924407,4.818,145.29,145.2,0.12549]
[1723407924581,381.0,145.35,145.21,33.46]
[1723407925197,393.0405,145.35,145.21,33.46]
[1723407925399,4.8173,145.31,145.21,33.46]
[1723407925579,381.0,145.35,145.24,33.46]
[1723407925789,4.8169,145.33,145.24,33.46]
[1723407926098,4.8163,145.34,145.24,33.46]
[1723407926615,4.8163,145.34,145.23,0.12549]
[1723407926616,4.8159,145.36,145.27,33.46]
[1723407927182,4.8159,145.36,145.28,0.7539332]
[1723407927600,4.8159,145.36,145.27,33.46]
[1723407928092,4.8159,145.35,145.27,33.46]
[1723407928707,7.15663849,145.4,145.27,33.46]
[1723407928912,7.15663849,145.4,145.28,0.12549]
[1723407929086,7.15663849,145.4,145.31,6.3044]
[1723407929282,3.52141405,145.46,145.33,33.46]
[1723407929580,4.8143,145.4,145.33,33.46]
[1723407930401,4.814,145.41,145.33,33.46]
[1723407930592,0.5,145.41,145.31,6.3044]
[1723407930796,4.8148,145.39,145.31,6.3044]
[1723407930986,0.5,145.38,145.31,6.3044]
[1723407931387,4.8143,145.4,145.31,6.3044]
[1723407931612,45.12549,145.39,145.31,6.3044]
[1723407931806,49.94009,145.39,145.31,6.3044]
[1723407932085,0.62549,145.38,145.31,6.3044]
[1723407932419,4.8156,145.36,145.31,6.3044]
[1723407932728,4.8151,145.38,145.31,6.3044]
[1723407932888,45.12549,145.37,145.31,6.3044]
[1723407933306,45.0,145.37,145.31,6.3044]
[1723407933914,33.46,145.35,145.27,6.3044]
[1723407934225,0.12549,145.33,145.23,6.3044]
[1723407934510,4.8172,145.31,145.23,6.3044]
[1723407934716,45.0,145.3,145.23,6.3044]
[1723407935033,4.8182,145.29,145.23,6.3044]
[1723407935310,0.12549,145.32,145.23,6.3044]
[1723407935532,0.25098,145.32,145.23,6.3044]
[1723407935702,4.94179,145.34,145.23,39.7644]
[1723407935905,50.06758,145.33,145.23,39.7644]
[1723407936092,50.06758,145.33,145.24,20.0]
[1723407936514,45.25098,145.33,145.24,20.0]
[1723407936726,0.75098,145.32,145.23,6.3044]
[1723407937011,5.06828,145.31,145.23,6.3044]
[1723407937330,4.94139,145.36,145.23,39.7644]
[1723407937498,19.02381405,145.4,145.26,33.46]
[1723407937699,15.5024,145.4,145.26,33.46]
[1723407937916,4.8153,145.37,145.26,33.46]
[1723407938315,5.3157,145.36,145.27,0.25098]
[1723407938519,4.8152,145.38,145.27,0.37647]
[1723407938825,4.8152,145.38,145.28,22.2511]
[1723407939039,36.98141405,145.42,145.28,22.2511]
[1723407939040,0.5,145.37,145.28,22.2511]
[1723407939241,4.817,145.32,145.28,22.2511]
[1723407939737,45.0,145.31,145.28,22.2511]
[1723407939943,45.0,145.32,145.28,22.2511]
[1723407940134,0.25098,145.31,145.28,6.3044]
[1723407940342,50.317,145.32,145.28,6.3044]
[1723407940845,5.06758,145.33,145.28,6.3044]
[1723407941018,0.25098,145.33,145.28,6.3044]
[1723407941217,45.62549,145.33,145.28,6.3044]
[1723407941419,0.25098,145.32,145.24,15.9467]
[1723407941644,0.12549,145.3,145.24,22.2511]
[1723407941849,4.818,145.29,145.24,22.2511]
[1723407942253,0.12549,145.28,145.24,22.2511]
[1723407942422,0.37647,145.3,145.24,22.2511]
[1723407942423,0.25098,145.3,145.24,22.2511]
[1723407942625,0.12549,145.29,145.24,22.2511]
[1723407942931,0.25098,145.29,145.24,22.2511]
[1723407943546,0.12549,145.29,145.24,22.2511]
[1723407943748,50.06858,145.3,145.24,22.2511]
[1723407944066,2.77913841,145.35,145.24,22.2511]
[1723407944242,426.4993,145.36,145.24,22.2511]
[1723407944243,4.8165,145.34,145.24,22.2511]
[1723407944445,381.0,145.36,145.25,0.12549]
[1723407944628,11.97615496,145.37,145.25,0.12549]
[1723407944629,7.16065496,145.37,145.25,0.12549]
[1723407944949,7.16065496,145.37,145.25,0.25098]
[1723407945389,7.16065496,145.37,145.26,33.46]
[1723407945675,3.52141405,145.41,145.27,0.25098]
[1723407945676,4.8152,145.38,145.27,0.25098]
[1723407945875,4.8152,145.38,145.3,27.87]
[1723407946049,4.8152,145.38,145.31,6.3044]
[1723407946251,30.67977327,145.41,145.31,6.3044]
[1723407946448,4.8156,145.36,145.31,6.3044]
[1723407947579,4.8146,145.39,145.31,6.3044]
[1723407948078,0.5,145.38,145.31,6.3044]
[1723407948277,33.94,145.41,145.31,6.3044]
[1723407948581,4.8156,145.36,145.31,6.3044]
[1723407948771,4.8153,145.37,145.31,6.3044]
[1723407948973,4.8159,145.36,145.31,6.3044]
[1723407949274,0.5,145.35,145.31,6.3044]
[1723407949574,36.96141405,145.41,145.31,6.3044]
[1723407949575,4.8139,145.41,145.32,15.9458]
[1723407949879,4.8144,145.4,145.32,15.9458]
[1723407950067,4.8151,145.38,145.32,15.9458]
[1723407950390,4.8154,145.37,145.32,15.9458]
[1723407950763,4.815,145.38,145.32,15.9458]
[1723407951270,45.12549,145.37,145.32,15.9458]
[1723407951856,4.94009,145.39,145.32,15.9458]
[1723407952183,4.8146,145.39,145.32,15.9458]
[1723407952683,0.12549,145.41,145.32,15.9458]
[1723407952987,4.8145,145.4,145.32,15.9458]
[1723407953149,4.814,145.41,145.32,15.9458]
[1723407953356,4.8139,145.42,145.32,15.9458]
[1723407953778,3.52141405,145.45,145.34,33.44]
[1723407953995,4.8132,145.44,145.35,6.94379244]
[1723407954155,12.5333,145.43,145.35,6.0773]
[1723407954360,4.8143,145.4,145.35,6.0773]
[1723407954586,4.814,145.41,145.35,6.0773]
[1723407954754,3.52141405,145.45,145.35,6.0773]
[1723407954954,4.8139,145.41,145.35,6.0773]
[1723407955182,3.52141405,145.44,145.35,6.0773]
[1723407955381,0.62549,145.43,145.35,6.0773]
[1723407955562,0.12549,145.43,145.35,6.0773]
[1723407955765,4.8136,145.42,145.35,6.0773]
[1723407955973,45.0,145.41,145.35,6.0773]
[1723407956168,49.814,145.41,145.35,6.0773]
[1723407956500,4.8136,145.42,145.35,6.0773]
[1723407956657,3.52141405,145.44,145.35,6.0773]
[1723407956862,256.4291393,145.47,145.35,6.0773]
[1723407957189,33.44,145.45,145.35,6.0773]
[1723407957490,0.5,145.44,145.35,6.0773]
[1723407957694,15.55291405,145.46,145.35,6.0773]
[1723407957981,0.5,145.45,145.35,6.0773]
[1723407958485,4.8137,145.42,145.35,6.0773]
[1723407958687,4.8133,145.43,145.35,6.0773]
[1723407958898,267.08661182,145.47,145.35,6.0773]
[1723407959078,0.25098,145.46,145.35,6.0773]
[1723407959273,4.813,145.44,145.35,6.0773]
[1723407959982,5.3133,145.43,145.35,6.0773]
[1723407960373,4.8137,145.42,145.35,6.0773]
[1723407960579,4.02141405,145.46,145.35,6.0773]
[1723407960791,0.5,145.45,145.35,6.0773]
[1723407961289,0.12549,145.44,145.35,6.0773]
[1723407961891,0.12549,145.43,145.35,6.0773]
[1723407962069,0.12549,145.41,145.35,6.0773]
[1723407962404,4.8169,145.32,145.31,6.0773]
[1723407962688,33.56549,145.39,145.31,6.0773]
[1723407962689,0.12549,145.37,145.31,6.0773]
[1723407963074,45.37647,145.38,145.31,6.0773]
[1723407963468,50.19157,145.38,145.31,6.0773]
[1723407963789,4.8147,145.39,145.31,6.0773]
[1723407963990,4.8143,145.4,145.31,6.0773]
[1723407964172,4.814,145.41,145.31,39.5173]
[1723407964582,4.8133,145.44,145.34,33.44]
[1723407964890,26.20898658,145.47,145.36,6.0773]
[1723407964891,39.77400718,145.47,145.36,6.0773]
[1723407965085,4.02141405,145.45,145.36,6.0773]
[1723407965481,4.8136,145.43,145.36,6.0773]
[1723407965678,4.813,145.44,145.36,6.0773]
[1723407967190,4.8133,145.43,145.36,6.0773]
[1723407967382,4.8142,145.41,145.36,6.0773]
[1723407967587,4.8136,145.42,145.36,6.0773]
[1723407967787,12.5314,145.46,145.36,6.0773]
[1723407968094,4.814,145.41,145.36,6.0773]
[1723407968283,0.5,145.4,145.36,6.0773]
[1723407968589,0.25098,145.45,145.36,6.0773]
[1723407968590,0.75098,145.45,145.36,6.0773]
[1723407968793,0.12549,145.43,145.36,6.0773]
[1723407969000,0.12549,145.43,145.32,15.9458]
[1723407969001,33.44,145.41,145.32,15.9458]
[1723407969211,4.8169,145.33,145.26,16.3095]
[1723407969498,5.317,145.32,145.26,16.3095]
[1723407969669,0.5,145.32,145.26,16.3095]
[1723407969870,4.8166,145.33,145.26,16.3095]
[1723407970892,28.01549,145.31,145.26,16.3095]
[1723407971077,28.01549,145.31,145.2,27.89]
[1723407971078,0.75098,145.3,145.21,16.3095]
[1723407971275,0.12549,145.28,145.21,16.3095]
[1723407971493,5.3189,145.27,145.21,16.3095]
[1723407971692,0.5,145.26,145.21,16.3095]
[1723407972067,0.25098,145.28,145.21,16.3095]
[1723407972273,0.12549,145.29,145.21,44.1995]
[1723407972507,0.25098,145.29,145.21,44.1995]
[1723407973003,45.0,145.3,145.23,27.89]
[1723407973178,408.89,145.35,145.25,27.89]
[1723407973372,27.89,145.35,145.25,27.89]
[1723407973995,45.508,145.38,145.26,1.37429678]
[1723407974171,4.8162,145.35,145.27,1.37420217]
[1723407974375,4.8156,145.36,145.25,1.37410758]
[1723407974577,4.8156,145.36,145.26,33.47]
[1723407974873,33.47,145.38,145.27,6.303]
[1723407975088,0.5,145.37,145.27,6.303]
[1723407975302,4.817,145.32,145.27,6.303]
[1723407975991,4.94209,145.33,145.27,6.303]
[1723407976193,0.12549,145.33,145.27,6.303]
[1723407976407,45.12549,145.33,145.27,6.303]
[1723407976913,45.12549,145.33,145.21,16.3095]
[1723407976914,34.22098,145.32,145.21,16.3095]
[1723407977218,0.12549,145.3,145.21,16.3095]
[1723407977504,4.8185,145.28,145.21,16.3095]
[1723407977807,0.25098,145.3,145.21,16.3095]
[1723407978009,4.8179,145.29,145.21,16.3095]
[1723407978182,4.94309,145.3,145.21,16.3095]
[1723407978384,45.5074,145.38,145.24,33.47]
[1723407978601,0.5,145.35,145.24,33.47]
[1723407978915,0.5,145.34,145.22,0.12549]
[1723407979083,4.8162,145.34,145.24,33.47]
[1723407979406,7.64231131,145.36,145.24,33.47]
[1723407979407,7.14231131,145.36,145.24,33.47]
[1723407979599,4.8155,145.37,145.29,16.3132]
[1723407980289,4.8149,145.39,145.29,16.3132]
[1723407980497,0.5,145.39,145.29,16.3132]
[1723407980806,4.815,145.38,145.29,16.3132]
[1723407980979,4.8149,145.39,145.29,16.3132]
[1723407981192,3.52141405,145.43,145.3,53.72098]
[1723407981405,10.66062156,145.44,145.32,0.12549]
[1723407981582,0.5,145.43,145.31,0.12549]
[1723407981790,0.5,145.43,145.29,16.3132]
[1723407981791,4.8156,145.36,145.29,16.3132]
[1723407981988,0.5,145.42,145.29,16.3132]
[1723407981989,4.8153,145.37,145.29,16.3132]
[1723407982182,5.3156,145.36,145.29,16.3132]
[1723407982391,4.8156,145.36,145.29,16.3132]
[1723407982801,0.5,145.35,145.29,16.3132]
[1723407983006,4.8152,145.38,145.29,16.3132]
[1723407983198,4.8143,145.4,145.3,33.47]
[1723407983407,45.0,145.39,145.3,33.47]
[1723407983610,0.12549,145.41,145.3,33.47]
[1723407983611,4.93949,145.41,145.3,33.47]
[1723407983902,4.8136,145.42,145.31,0.25098]
[1723407984105,4.8136,145.42,145.32,0.25098]
[1723407984314,0.5,145.41,145.31,20.25098]
[1723407984489,4.8145,145.4,145.31,20.12549]
[1723407985705,7.13920751,145.44,145.32,0.12549]
[1723407985905,7.13920751,145.44,145.33,33.59549]
[1723407986103,0.5,145.43,145.33,33.47]
[1723407986281,4.814,145.41,145.33,33.47]
[1723407986682,4.8136,145.42,145.33,33.47]
[1723407986887,4.8133,145.43,145.34,0.25098]
[1723407987399,4.813,145.44,145.34,0.25098]
[1723407987784,0.5,145.43,145.34,0.25098]
[1723407988117,0.5,145.43,145.35,6.0845]
[1723407988784,4.813,145.44,145.35,6.0845]
[1723407988980,4.8134,145.43,145.35,6.0845]
[1723407989210,0.5,145.42,145.35,6.0845]
[1723407989519,4.8134,145.43,145.35,6.0845]
[1723407990019,0.12549,145.47,145.36,49.98199]
[1723407990186,3.52141405,145.48,145.36,49.98199]
[1723407990793,4.8122,145.47,145.36,49.98199]
[1723407991028,4.8117,145.48,145.38,0.12549]
[1723407991339,0.5,145.48,145.37,20.0]
[1723407991526,4.8127,145.45,145.36,16.3865]
[1723407991817,4.8126,145.45,145.36,16.3865]
[1723407992200,4.8126,145.45,145.37,0.25098]
[1723407992405,36.99141405,145.5,145.37,0.37647]
[1723407992406,4.8123,145.46,145.37,0.37647]
[1723407992726,4.8123,145.46,145.37,0.25098]
[1723407992901,4.8116,145.48,145.39,0.12549]
[1723407993114,4.8121,145.47,145.39,0.25098]
[1723407993298,4.02141405,145.51,145.39,20.0]
[1723407993506,4.812,145.47,145.39,20.0]
[1723407993818,4.8117,145.48,145.39,20.0]
[1723407994152,4.8109,145.51,145.42,27.95549]
[1723407994326,2.82256048,145.53,145.44,27.83]
[1723407994526,28.33,145.55,145.44,27.83]
[1723407995017,28.33,145.55,145.43,16.51199]
[1723407995018,4.8091,145.56,145.46,27.83]
[1723407995214,4.8094,145.55,145.46,27.83]
[1723407995819,0.5,145.58,145.48,27.83]
[1723407995820,4.809,145.56,145.48,27.83]
[1723407996198,5.309,145.56,145.48,27.83]
[1723407996794,0.5,145.6,145.49,16.3865]
[1723407996999,4.8087,145.57,145.49,16.3865]
[1723407997305,4.8083,145.58,145.49,16.3865]
[1723407997503,4.8083,145.58,145.5,27.83]
[1723407998129,4.808,145.59,145.5,27.83]
[1723407998433,4.808,145.59,145.49,16.51199]
[1723407998434,4.8081,145.59,145.52,27.83]
[1723407999011,5.3077,145.6,145.52,27.83]
[1723407999325,393.0159,145.64,145.54,27.83]
[1723407999530,4.8083,145.58,145.5,27.83]
[1723407999708,4.808,145.59,145.51,20.0]
[1723407999908,4.8077,145.6,145.51,20.0]
[1723408000130,4.8077,145.6,145.52,27.83]
[1723408000536,4.8082,145.59,145.52,27.83]
[1723408002134,4.8077,145.6,145.52,27.83]
[1723408002339,4.8077,145.6,145.51,20.0]
[1723408002535,28.08098,145.61,145.49,16.51199]
[1723408002536,73.58098,145.59,145.49,16.51199]
[1723408002739,77.6383,145.59,145.49,16.51199]
[1723408003239,0.5,145.58,145.5,28.08098]
[1723408003839,27.83,145.61,145.5,28.08098]
[1723408004140,5.3077,145.6,145.52,0.12549]
[1723408004519,5.3077,145.6,145.51,20.12549]
[1723408004726,4.8081,145.59,145.51,20.0]
[1723408004914,27.83,145.61,145.51,20.0]
[1723408004915,32.6376,145.61,145.52,27.95549]
[1723408005237,4.8077,145.6,145.52,27.95549]
[1723408005453,32.6373,145.61,145.52,27.95549]
[1723408005776,4.8063,145.64,145.56,27.83]
[1723408006056,12.8426393,145.67,145.56,27.83]
[1723408006057,4.8067,145.63,145.56,27.83]
[1723408006223,4.807,145.62,145.55,6.3382]
[1723408006426,5.3073,145.61,145.55,6.3382]
[1723408006665,27.83,145.58,145.5,6.3382]
[1723408006840,0.5,145.57,145.5,6.3382]
[1723408007235,27.83,145.54,145.46,6.3382]
[1723408007451,45.5,145.53,145.46,6.3382]
[1723408007653,4.93509,145.55,145.46,6.3382]
[1723408007654,4.8096,145.55,145.46,6.3382]
[1723408007955,0.25098,145.54,145.46,6.3382]
[1723408008146,4.8107,145.51,145.46,6.3382]
[1723408008554,4.8103,145.52,145.46,6.3382]
[1723408008753,5.06098,145.53,145.46,6.3382]
[1723408008944,0.12549,145.53,145.46,6.3382]
[1723408009141,49.81,145.53,145.46,6.3382]
[1723408009357,0.62549,145.52,145.46,6.3382]
[1723408009574,4.8106,145.51,145.46,6.3382]
[1723408009858,72.95549,145.5,145.4,6.6233]
[1723408010050,4.8127,145.45,145.4,6.6233]
[1723408010254,4.8127,145.45,145.39,15.7103]
[1723408010255,72.83,145.44,145.39,15.7103]
[1723408010450,27.83,145.44,145.36,6.6233]
[1723408010653,32.76779,145.46,145.36,6.6233]
[1723408010861,0.5,145.45,145.36,34.4533]
[1723408011158,45.5,145.46,145.38,27.83]
[1723408011341,0.5,145.46,145.38,27.83]
[1723408011736,0.5,145.46,145.39,20.0]
[1723408012158,4.93659,145.5,145.4,27.83]
[1723408012356,49.93679,145.49,145.4,27.83]
[1723408012563,45.12549,145.49,145.4,27.83]
[1723408012745,0.75098,145.48,145.39,20.0]
[1723408012950,0.25098,145.47,145.39,20.0]
[1723408013142,0.12549,145.47,145.39,20.0]
[1723408013471,4.93719,145.48,145.39,20.0]
[1723408013651,45.25098,145.49,145.39,20.0]
[1723408013970,34.2803,145.52,145.39,20.0]
[1723408013971,4.8109,145.51,145.42,27.83]
[1723408014463,4.811,145.5,145.42,27.83]
[1723408014682,28.33,145.5,145.39,20.0]
[1723408014844,32.6419,145.48,145.39,20.0]
[1723408015044,27.83,145.52,145.4,27.95549]
[1723408015244,45.12549,145.51,145.4,27.95549]
[1723408015559,27.95549,145.5,145.4,27.83]
[1723408015742,4.8119,145.48,145.4,27.83]
[1723408015942,4.8119,145.48,145.39,20.0]
[1723408015943,5.312,145.47,145.39,20.0]
[1723408016343,4.8123,145.46,145.39,20.0]
[1723408016561,0.5,145.45,145.39,20.0]
[1723408016754,5.3128,145.45,145.39,20.0]
[1723408016969,4.813,145.44,145.36,6.6233]
[1723408017160,0.5,145.43,145.36,6.6233]
[1723408017959,0.5,145.43,145.36,34.4533]
[1723408018160,49.8129,145.44,145.36,6.6233]
[1723408018161,4.814,145.41,145.36,6.6233]
[1723408018344,4.8136,145.42,145.36,6.6233]
[1723408018850,4.8133,145.43,145.36,6.6233]
[1723408019045,45.0,145.42,145.36,6.6233]
[1723408019642,5.43949,145.41,145.36,6.6233]
[1723408019846,5.43949,145.41,145.32,34.4533]
[1723408019847,0.62549,145.41,145.32,34.4533]
[1723408020261,0.12549,145.41,145.32,34.4533]
[1723408020460,4.8143,145.4,145.32,34.4533]
[1723408020977,0.25098,145.41,145.32,6.6233]
[1723408021152,0.25098,145.41,145.31,15.7103]
[1723408021153,4.8153,145.37,145.31,15.7103]
[1723408021874,0.12549,145.4,145.31,15.7103]
[1723408022175,0.25098,145.4,145.32,27.83]
[1723408022480,50.06538,145.4,145.32,27.83]
[1723408022784,5.06538,145.4,145.32,27.83]
[1723408023082,0.62549,145.39,145.31,15.7103]
[1723408023284,0.12549,145.38,145.31,15.7103]
[1723408023489,0.25098,145.4,145.31,15.7103]
[1723408023654,4.8136,145.42,145.32,27.83]
[1723408023853,4.8136,145.42,145.34,27.83]
[1723408024080,4.8141,145.41,145.34,27.83]
[1723408024255,4.8149,145.38,145.31,15.7103]
[1723408024583,0.5,145.37,145.31,15.7103]
[1723408024951,4.8146,145.39,145.31,15.7103]
[1723408025153,45.62549,145.38,145.31,15.7103]
[1723408025365,27.83,145.42,145.31,15.7103]
[1723408025672,4.8144,145.4,145.31,15.7103]
[1723408025866,16.6476,145.44,145.34,27.83]
[1723408026274,4.8143,145.4,145.32,27.83]
[1723408026586,28.33,145.43,145.32,27.83]
[1723408026587,4.814,145.41,145.32,27.83]
[1723408026777,4.8136,145.42,145.32,27.83]
[1723408026980,0.5,145.44,145.34,27.83]
[1723408027283,4.8136,145.42,145.34,27.83]
[1723408027468,4.8141,145.41,145.32,27.83]
[1723408027783,385.8129,145.45,145.34,27.83]
[1723408027951,4.8139,145.42,145.34,27.83]
[1723408028278,4.8139,145.42,145.33,0.12549]
[1723408028279,27.83,145.4,145.31,15.7103]
[1723408028460,27.83,145.42,145.32,27.83]
[1723408029061,4.8146,145.4,145.32,27.83]
[1723408029454,4.8147,145.39,145.32,27.83]
[1723408029683,28.45549,145.38,145.28,23.2654]
[1723408029855,4.8158,145.36,145.28,23.2654]
[1723408030062,78.27069,145.38,145.28,23.2654]
[1723408030257,0.12549,145.41,145.31,27.83]
[1723408030454,4.8144,145.4,145.31,27.83]
[1723408030678,4.8147,145.39,145.31,27.83]
[1723408031069,45.50196,145.41,145.31,27.83]
[1723408031456,4.8147,145.39,145.31,27.83]
[1723408031692,4.8143,145.4,145.31,27.83]
[1723408031871,50.31596,145.41,145.32,0.89941153]
[1723408032073,0.12549,145.41,145.33,28.72934964]
[1723408032258,4.8136,145.43,145.35,27.83]
[1723408032456,4.8137,145.42,145.35,27.83]
[1723408032857,27.83,145.46,145.36,0.90258548]
[1723408033064,4.8132,145.44,145.37,0.90237188]
[1723408033267,27.83,145.46,145.36,22.6792]
[1723408033674,4.8136,145.42,145.36,22.6792]
[1723408034260,0.12549,145.4,145.31,27.83]
[1723408034455,0.12549,145.4,145.29,50.5092]
[1723408034456,4.8152,145.38,145.29,50.5092]
[1723408034662,5.3153,145.37,145.29,50.5092]
[1723408035084,4.8156,145.36,145.29,50.5092]
[1723408035286,4.8145,145.4,145.29,50.5092]
[1723408035487,45.75098,145.41,145.31,27.83]
[1723408035677,0.12549,145.4,145.31,27.83]
[1723408035989,5.3149,145.39,145.31,27.83]
[1723408036164,0.25098,145.4,145.31,27.83]
[1723408036790,0.12549,145.4,145.31,27.83]
[1723408037089,4.815,145.38,145.31,27.83]
[1723408037464,4.8153,145.37,145.31,27.83]
[1723408037672,4.8153,145.37,145.29,50.5092]
[1723408037973,4.8158,145.36,145.29,50.5092]
[1723408038475,4.8153,145.37,145.29,50.5092]
[1723408039164,4.8162,145.34,145.29,22.6792]
[1723408039366,4.8166,145.33,145.26,6.0371]
[1723408039590,4.8162,145.35,145.26,6.0371]
[1723408039793,4.8164,145.34,145.26,6.0371]
[1723408039987,4.8171,145.32,145.26,6.0371]
[1723408040488,4.94209,145.33,145.26,6.0371]
[1723408040692,45.0,145.32,145.26,6.0371]
[1723408041475,45.12549,145.33,145.26,6.0371]
[1723408041797,45.0,145.33,145.26,6.0371]
[1723408041979,4.8156,145.36,145.27,27.83]
[1723408042363,6.7935,145.39,145.26,6.0371]
[1723408042364,4.8153,145.37,145.29,27.83]
[1723408042597,4.8153,145.37,145.3,0.5713959]
[1723408042770,4.8153,145.37,145.3,1.37611772]
[1723408042968,4.8146,145.39,145.31,27.83]
[1723408043188,18.94601821,145.48,145.37,27.83]
[1723408043493,4.81,145.53,145.45,27.83]
[1723408043789,4.81,145.53,145.46,0.72470716]
[1723408043994,4.8117,145.48,145.43,16.5631]
[1723408044160,27.83,145.49,145.39,34.3217]
[1723408044361,27.83,145.49,145.39,6.4917]
[1723408044585,4.8126,145.45,145.39,6.4917]
[1723408044800,4.8106,145.51,145.45,0.12549]
[1723408044962,21.6875,145.59,145.47,27.83]
[1723408045297,27.83,145.6,145.56,27.83]
[1723408045298,7.12956103,145.6,145.56,27.83]
[1723408045462,27.83,145.62,145.5,27.83]
[1723408045789,7.12707319,145.59,145.5,27.83]
[1723408045968,27.83,145.62,145.5,27.83]
[1723408045969,0.5,145.58,145.5,27.83]
[1723408046290,4.809,145.56,145.5,27.83]
[1723408047069,39.8493,145.6,145.48,50.8848]
[1723408047974,0.12549,145.55,145.46,27.83]
[1723408048178,4.8099,145.54,145.46,27.83]
[1723408048374,5.18647,145.53,145.46,27.83]
[1723408048573,5.06098,145.53,145.46,27.83]